[Event "*** Titled Tuesday Blitz"]
[Site "Chess.com"]
[Date "2020.11.24"]
[Round "7"]
[White "ShahMatKanal"]
[Black "Pikachess999"]
[Result "1-0"]
[WhiteElo "2512"]
[BlackElo "2370"]
[TimeControl "180+1"]
[EndTime "11:33:59 PST"]
[Termination "ShahMatKanal won by checkmate"]

1. e4 {[%clk 0:03:00.9]} 1... e6 {[%clk 0:03:00.1]} 2. d3 {[%clk 0:02:58.1]}
2... d5 {[%clk 0:03:00.4]} 3. Nd2 {[%clk 0:02:58.3]} 3... c5 {[%clk 0:03:00.7]}
4. g3 {[%clk 0:02:58.1]} 4... Nc6 {[%clk 0:03:01.2]} 5. Bg2 {[%clk 0:02:58.4]}
5... Nge7 {[%clk 0:03:01.7]} 6. Ngf3 {[%clk 0:02:57.8]} 6... g6 {[%clk 0:03:02]}
7. O-O {[%clk 0:02:58.3]} 7... Bg7 {[%clk 0:03:02.5]} 8. Re1 {[%clk 0:02:58.6]}
8... O-O {[%clk 0:03:02.9]} 9. Qe2 {[%clk 0:02:58.5]} 9... Qc7 {[%clk
0:03:02.6]} 10. c3 {[%clk 0:02:47.2]} 10... b6 {[%clk 0:03:00.4]} 11. Nf1 {[%clk
0:02:39.9]} 11... Ba6 {[%clk 0:02:50.2]} 12. Bf4 {[%clk 0:02:34.9]} 12... Qd7
{[%clk 0:02:10.5]} 13. e5 {[%clk 0:02:27.8]} 13... h6 {[%clk 0:02:02.7]} 14. h4
{[%clk 0:02:27.3]} 14... Rae8 {[%clk 0:01:39.8]} 15. N1h2 {[%clk 0:02:24.5]}
15... h5 {[%clk 0:01:35]} 16. Bg5 {[%clk 0:02:13.7]} 16... Nf5 {[%clk 0:01:26]}
17. g4 {[%clk 0:02:09.6]} 17... hxg4 {[%clk 0:01:24.6]} 18. Nxg4 {[%clk
0:02:10.5]} 18... Kh7 {[%clk 0:00:47.9]} 19. Nf6+ {[%clk 0:02:08.9]} 19... Bxf6
{[%clk 0:00:47.9]} 20. Bxf6 {[%clk 0:02:09.8]} 20... Nh6 {[%clk 0:00:35.1]} 21.
Qd2 {[%clk 0:01:57.3]} 21... Rh8 {[%clk 0:00:32.1]} 22. Bh3 {[%clk 0:01:36.1]}
22... d4 {[%clk 0:00:24.3]} 23. Ng5+ {[%clk 0:01:34.4]} 23... Kg8 {[%clk
0:00:23.4]} 24. Bxh8 {[%clk 0:01:35.3]} 24... Kxh8 {[%clk 0:00:22.7]} 25. Nxe6
{[%clk 0:01:33.9]} 25... Ng8 {[%clk 0:00:18.1]} 26. Ng5 {[%clk 0:01:22.3]} 26...
Qe7 {[%clk 0:00:10.5]} 27. e6 {[%clk 0:01:20.9]} 27... f6 {[%clk 0:00:09.2]} 28.
Nf7+ {[%clk 0:01:21.4]} 28... Kg7 {[%clk 0:00:09.6]} 29. h5 {[%clk 0:01:18.3]}
29... gxh5 {[%clk 0:00:05.6]} 30. Kh1 {[%clk 0:01:11.5]} 30... Ne5 {[%clk
0:00:05.3]} 31. Rg1+ {[%clk 0:01:09.9]} 31... Kf8 {[%clk 0:00:05.4]} 32. Rxg8+
{[%clk 0:01:07.9]} 32... Kxg8 {[%clk 0:00:06.3]} 33. Rg1+ {[%clk 0:01:05.8]}
33... Ng4 {[%clk 0:00:06.5]} 34. Bxg4 {[%clk 0:01:05.5]} 34... Bb7+ {[%clk
0:00:02.5]} 35. Bf3+ {[%clk 0:01:05.4]} 35... Kf8 {[%clk 0:00:01.7]} 36. Qh6#
{[%clk 0:01:06]} 1-0

[Event "*** Titled Tuesday Blitz"]
[Site "Chess.com"]
[Date "2020.11.24"]
[Round "7"]
[White "Kretov_Evgenij"]
[Black "Sergienko_Sergey"]
[Result "1-0"]
[WhiteElo "2449"]
[BlackElo "2334"]
[TimeControl "180+1"]
[EndTime "11:34:02 PST"]
[Termination "Kretov_Evgenij won by resignation"]

1. d4 {[%clk 0:03:00.9]} 1... Nf6 {[%clk 0:02:59.4]} 2. c4 {[%clk 0:03:01.1]}
2... c5 {[%clk 0:02:58.7]} 3. d5 {[%clk 0:03:00.6]} 3... e5 {[%clk 0:02:58.5]}
4. Nc3 {[%clk 0:03:00.3]} 4... d6 {[%clk 0:02:58.1]} 5. e4 {[%clk 0:03:00.3]}
5... Be7 {[%clk 0:02:58]} 6. g3 {[%clk 0:03:00.1]} 6... O-O {[%clk 0:02:55.6]}
7. Bg2 {[%clk 0:03:00.4]} 7... Ne8 {[%clk 0:02:55.5]} 8. Nge2 {[%clk 0:03:00.7]}
8... g6 {[%clk 0:02:54.8]} 9. O-O {[%clk 0:03:00.8]} 9... Ng7 {[%clk 0:02:52.8]}
10. h3 {[%clk 0:02:57.4]} 10... Nd7 {[%clk 0:02:49]} 11. Kh2 {[%clk 0:02:55.8]}
11... a6 {[%clk 0:02:45.7]} 12. a3 {[%clk 0:02:52]} 12... Rb8 {[%clk 0:02:43.1]}
13. b4 {[%clk 0:02:50.4]} 13... b5 {[%clk 0:02:39.9]} 14. cxb5 {[%clk 0:02:46]}
14... axb5 {[%clk 0:02:37.8]} 15. bxc5 {[%clk 0:02:43.5]} 15... Nxc5 {[%clk
0:02:37.3]} 16. Rb1 {[%clk 0:02:42.9]} 16... Bd7 {[%clk 0:02:29.4]} 17. Be3
{[%clk 0:02:42.6]} 17... Qc7 {[%clk 0:02:20.1]} 18. Qd2 {[%clk 0:02:38.9]} 18...
f5 {[%clk 0:02:17.9]} 19. Rfc1 {[%clk 0:02:38.8]} 19... f4 {[%clk 0:01:45.2]}
20. gxf4 {[%clk 0:02:37.4]} 20... exf4 {[%clk 0:01:45.1]} 21. Bxf4 {[%clk
0:02:31.3]} 21... Bf6 {[%clk 0:01:39.9]} 22. Bh6 {[%clk 0:02:20.2]} 22... Rf7
{[%clk 0:01:32.8]} 23. Ng3 {[%clk 0:02:19.4]} 23... Rbf8 {[%clk 0:01:25.9]} 24.
Nce2 {[%clk 0:02:19.3]} 24... Qd8 {[%clk 0:01:11]} 25. f4 {[%clk 0:02:18.3]}
25... Bh4 {[%clk 0:01:07.9]} 26. Rf1 {[%clk 0:02:16.5]} 26... Qe7 {[%clk
0:01:03.8]} 27. Qe3 {[%clk 0:02:00.2]} 27... Re8 {[%clk 0:00:57.6]} 28. Rb4
{[%clk 0:01:51.8]} 28... Nf5 {[%clk 0:00:49.9]} 29. Nxf5 {[%clk 0:01:51]} 29...
Bxf5 {[%clk 0:00:47.6]} 30. Nc3 {[%clk 0:01:43.6]} 30... Bf6 {[%clk 0:00:46.2]}
31. Bg5 {[%clk 0:01:37]} 31... Bxg5 {[%clk 0:00:45.5]} 32. fxg5 {[%clk
0:01:37.1]} 32... Qe5+ {[%clk 0:00:44.7]} 33. Kg1 {[%clk 0:01:30.1]} 33... Ref8
{[%clk 0:00:42.3]} 34. Qd4 {[%clk 0:01:23.4]} 34... Qg3 {[%clk 0:00:35.2]} 35.
exf5 {[%clk 0:01:21.7]} 35... Rxf5 {[%clk 0:00:34.9]} 36. Rxf5 {[%clk
0:01:17.5]} 36... Rxf5 {[%clk 0:00:34.7]} 37. Rxb5 {[%clk 0:00:58.6]} 37... Rxg5
{[%clk 0:00:25.7]} 38. Rb8+ {[%clk 0:00:57.9]} 38... Kf7 {[%clk 0:00:25.6]} 39.
Qf2+ {[%clk 0:00:56.9]} 39... Qxf2+ {[%clk 0:00:24.8]} 40. Kxf2 {[%clk
0:00:57.1]} 1-0

[Event "*** Titled Tuesday Blitz"]
[Site "Chess.com"]
[Date "2020.11.24"]
[Round "7"]
[White "Nara_Kh"]
[Black "Campelov"]
[Result "1-0"]
[WhiteElo "2368"]
[BlackElo "2192"]
[TimeControl "180+1"]
[EndTime "11:34:02 PST"]
[Termination "Nara_Kh won by resignation"]

1. b3 {[%clk 0:02:58.6]} 1... c5 {[%clk 0:02:58.1]} 2. Bb2 {[%clk 0:02:58.6]}
2... Nc6 {[%clk 0:02:58.4]} 3. e4 {[%clk 0:02:58.7]} 3... d6 {[%clk 0:02:56.2]}
4. Bb5 {[%clk 0:02:58.3]} 4... Bd7 {[%clk 0:02:55.7]} 5. f4 {[%clk 0:02:56.9]}
5... e5 {[%clk 0:02:50.2]} 6. Nf3 {[%clk 0:02:55.2]} 6... exf4 {[%clk
0:02:38.1]} 7. O-O {[%clk 0:02:55]} 7... Nf6 {[%clk 0:02:35.2]} 8. d3 {[%clk
0:02:47.8]} 8... Be7 {[%clk 0:02:29.4]} 9. Nc3 {[%clk 0:02:27.1]} 9... O-O
{[%clk 0:02:20.5]} 10. Qd2 {[%clk 0:02:26.1]} 10... a6 {[%clk 0:02:20.9]} 11.
Bxc6 {[%clk 0:02:25.5]} 11... Bxc6 {[%clk 0:02:21.8]} 12. Qxf4 {[%clk
0:02:26.3]} 12... d5 {[%clk 0:02:06.6]} 13. exd5 {[%clk 0:02:19.4]} 13... Nxd5
{[%clk 0:02:01.7]} 14. Nxd5 {[%clk 0:02:18.7]} 14... Qxd5 {[%clk 0:02:02.2]} 15.
Rae1 {[%clk 0:02:19.1]} 15... Rae8 {[%clk 0:02:00]} 16. Qg4 {[%clk 0:02:13.7]}
16... f6 {[%clk 0:01:55.8]} 17. Nh4 {[%clk 0:02:03.7]} 17... Bd8 {[%clk
0:01:33.7]} 18. Nf5 {[%clk 0:01:51.6]} 18... g6 {[%clk 0:01:26.4]} 19. Ne3
{[%clk 0:01:16.7]} 19... Qf7 {[%clk 0:00:54.4]} 20. Nc4 {[%clk 0:01:12.2]} 20...
Rxe1 {[%clk 0:00:42.2]} 21. Rxe1 {[%clk 0:01:11.4]} 21... Bc7 {[%clk 0:00:42.1]}
22. Qe6 {[%clk 0:00:38.1]} 22... Re8 {[%clk 0:00:36]} 23. Qxf7+ {[%clk
0:00:36.8]} 23... Kxf7 {[%clk 0:00:36.9]} 24. Rxe8 {[%clk 0:00:36.9]} 24... Kxe8
{[%clk 0:00:37.1]} 25. Bxf6 {[%clk 0:00:36.3]} 25... Kf7 {[%clk 0:00:37.3]} 26.
Be5 {[%clk 0:00:31.3]} 26... Bd8 {[%clk 0:00:32.6]} 27. Bd6 {[%clk 0:00:31.2]}
27... b5 {[%clk 0:00:29.6]} 28. Ne5+ {[%clk 0:00:31.4]} 28... Ke6 {[%clk
0:00:29.4]} 29. Nxc6 {[%clk 0:00:32.2]} 29... Kxd6 {[%clk 0:00:29.9]} 30. Nxd8
{[%clk 0:00:32.4]} 1-0

[Event "*** Titled Tuesday Blitz"]
[Site "Chess.com"]
[Date "2020.11.24"]
[Round "7"]
[White "QuintilianoR"]
[Black "Neftegor"]
[Result "0-1"]
[WhiteElo "2659"]
[BlackElo "2530"]
[TimeControl "180+1"]
[EndTime "11:34:03 PST"]
[Termination "Neftegor won by resignation"]

1. d4 {[%clk 0:03:00.9]} 1... Nf6 {[%clk 0:02:58.5]} 2. c4 {[%clk 0:03:00]} 2...
e6 {[%clk 0:02:58.6]} 3. Nf3 {[%clk 0:02:59.4]} 3... Bb4+ {[%clk 0:02:58.1]} 4.
Nbd2 {[%clk 0:02:58.6]} 4... O-O {[%clk 0:02:56.9]} 5. a3 {[%clk 0:02:58.6]}
5... Be7 {[%clk 0:02:56.1]} 6. e4 {[%clk 0:02:58.5]} 6... d6 {[%clk 0:02:56.2]}
7. Be2 {[%clk 0:02:58.1]} 7... e5 {[%clk 0:02:55.8]} 8. O-O {[%clk 0:02:54.4]}
8... exd4 {[%clk 0:02:54.5]} 9. Nxd4 {[%clk 0:02:53.2]} 9... Nc6 {[%clk
0:02:55]} 10. Nc2 {[%clk 0:02:18.8]} 10... Re8 {[%clk 0:02:52.1]} 11. Re1 {[%clk
0:02:16]} 11... Bf8 {[%clk 0:02:52.1]} 12. Bf1 {[%clk 0:02:14.8]} 12... a5
{[%clk 0:02:52]} 13. b3 {[%clk 0:02:14.2]} 13... g6 {[%clk 0:02:46.3]} 14. Bb2
{[%clk 0:02:13.5]} 14... Bg7 {[%clk 0:02:46.5]} 15. Rb1 {[%clk 0:02:13.9]} 15...
Ne5 {[%clk 0:02:39.7]} 16. h3 {[%clk 0:02:09.8]} 16... c6 {[%clk 0:02:38.1]} 17.
Bd4 {[%clk 0:02:02.3]} 17... Nh5 {[%clk 0:02:26.6]} 18. g3 {[%clk 0:01:37]}
18... f5 {[%clk 0:02:13.2]} 19. exf5 {[%clk 0:01:12.2]} 19... Bxf5 {[%clk
0:02:11.9]} 20. Rc1 {[%clk 0:01:08.9]} 20... Bh6 {[%clk 0:01:55.1]} 21. Ne3
{[%clk 0:01:02.8]} 21... Bd7 {[%clk 0:01:47.3]} 22. Nf3 {[%clk 0:00:44.9]} 22...
Nxf3+ {[%clk 0:01:36.8]} 23. Qxf3 {[%clk 0:00:45.8]} 23... Rf8 {[%clk
0:01:35.6]} 24. Qd1 {[%clk 0:00:44.9]} 24... Qc8 {[%clk 0:01:12.7]} 25. Ng4
{[%clk 0:00:18.9]} 25... Bxg4 {[%clk 0:01:09.2]} 26. Qxg4 {[%clk 0:00:19.4]}
26... Bxc1 {[%clk 0:01:00]} 27. Rxc1 {[%clk 0:00:14.4]} 27... Qxg4 {[%clk
0:00:53.1]} 28. hxg4 {[%clk 0:00:15.3]} 28... Nf6 {[%clk 0:00:53.2]} 29. g5
{[%clk 0:00:15.5]} 29... Ne4 {[%clk 0:00:52.9]} 30. Re1 {[%clk 0:00:11.7]} 30...
Nxg5 {[%clk 0:00:47.7]} 0-1

[Event "*** Titled Tuesday Blitz"]
[Site "Chess.com"]
[Date "2020.11.24"]
[Round "7"]
[White "TigrVShlyape"]
[Black "Fh2411"]
[Result "1-0"]
[WhiteElo "2826"]
[BlackElo "2562"]
[TimeControl "180+1"]
[EndTime "11:34:05 PST"]
[Termination "TigrVShlyape won by resignation"]

1. d4 {[%clk 0:03:00.9]} 1... d5 {[%clk 0:02:59.3]} 2. Nf3 {[%clk 0:02:58.4]}
2... c6 {[%clk 0:02:57.7]} 3. Bf4 {[%clk 0:02:57.5]} 3... Bf5 {[%clk 0:02:49.8]}
4. e3 {[%clk 0:02:56.3]} 4... e6 {[%clk 0:02:50]} 5. c4 {[%clk 0:02:53.8]} 5...
Nd7 {[%clk 0:02:49.7]} 6. Nc3 {[%clk 0:02:53.1]} 6... Ngf6 {[%clk 0:02:41.6]} 7.
Qb3 {[%clk 0:02:52.9]} 7... Qb6 {[%clk 0:02:41]} 8. c5 {[%clk 0:02:52.6]} 8...
Qxb3 {[%clk 0:02:41.4]} 9. axb3 {[%clk 0:02:52.3]} 9... Nh5 {[%clk 0:02:41.8]}
10. b4 {[%clk 0:02:49.9]} 10... Nxf4 {[%clk 0:02:34.5]} 11. exf4 {[%clk
0:02:49.7]} 11... Be7 {[%clk 0:02:32.9]} 12. b5 {[%clk 0:02:48.4]} 12... O-O
{[%clk 0:02:29.8]} 13. Kd2 {[%clk 0:02:47.6]} 13... f6 {[%clk 0:02:13.3]} 14.
Nh4 {[%clk 0:01:58.9]} 14... Bg4 {[%clk 0:02:01.3]} 15. Be2 {[%clk 0:01:53.5]}
15... f5 {[%clk 0:01:35.1]} 16. Nf3 {[%clk 0:01:49.6]} 16... Bxf3 {[%clk
0:01:33.9]} 17. Bxf3 {[%clk 0:01:48.8]} 17... Kf7 {[%clk 0:01:13]} 18. bxc6
{[%clk 0:01:47]} 18... bxc6 {[%clk 0:01:13]} 19. Ra6 {[%clk 0:01:46.7]} 19...
Rfc8 {[%clk 0:01:10.4]} 20. Rha1 {[%clk 0:01:46.4]} 20... Rc7 {[%clk 0:01:10.8]}
21. b4 {[%clk 0:01:46.2]} 21... Nb8 {[%clk 0:00:48]} 22. R6a4 {[%clk 0:01:43.1]}
22... Rb7 {[%clk 0:00:47.8]} 23. Be2 {[%clk 0:01:37.5]} 23... a6 {[%clk
0:00:37.6]} 24. g3 {[%clk 0:01:34.9]} 24... Raa7 {[%clk 0:00:37.1]} 25. b5
{[%clk 0:01:33.4]} 25... cxb5 {[%clk 0:00:30.2]} 26. Bxb5 {[%clk 0:01:32.5]}
26... Bf6 {[%clk 0:00:19.8]} 27. Kd3 {[%clk 0:01:32.2]} 27... Bd8 {[%clk
0:00:16.2]} 28. Bxa6 {[%clk 0:01:31.2]} 28... Nxa6 {[%clk 0:00:13.5]} 29. Rxa6
{[%clk 0:01:30.9]} 29... Rxa6 {[%clk 0:00:14.4]} 30. Rxa6 {[%clk 0:01:30.5]}
30... Rb3 {[%clk 0:00:14.9]} 31. Kc2 {[%clk 0:01:26]} 31... Rb4 {[%clk
0:00:14.4]} 32. Ra4 {[%clk 0:01:23.4]} 32... Rb7 {[%clk 0:00:11.8]} 33. Na2
{[%clk 0:01:19.9]} 33... g5 {[%clk 0:00:10]} 34. fxg5 {[%clk 0:01:18.7]} 34...
Bxg5 {[%clk 0:00:10.9]} 35. Nb4 {[%clk 0:01:17.7]} 35... Bf6 {[%clk 0:00:09.7]}
36. Nd3 {[%clk 0:01:13.2]} 36... h5 {[%clk 0:00:08.4]} 37. h4 {[%clk 0:01:12.7]}
37... Ke7 {[%clk 0:00:08.2]} 38. Nf4 {[%clk 0:01:12]} 38... Rc7 {[%clk
0:00:02.8]} 39. Kd3 {[%clk 0:01:10.8]} 39... e5 {[%clk 0:00:02.9]} 40. Nxd5+
{[%clk 0:01:10.4]} 1-0

[Event "*** Titled Tuesday Blitz"]
[Site "Chess.com"]
[Date "2020.11.24"]
[Round "7"]
[White "Angel_Hranitel_37"]
[Black "Kaua18"]
[Result "1-0"]
[WhiteElo "2487"]
[BlackElo "2354"]
[TimeControl "180+1"]
[EndTime "11:34:05 PST"]
[Termination "Angel_Hranitel_37 won on time"]

1. d4 {[%clk 0:03:00.9]} 1... Nf6 {[%clk 0:03:00]} 2. Nf3 {[%clk 0:03:01]} 2...
e6 {[%clk 0:02:59.1]} 3. c4 {[%clk 0:03:01.6]} 3... b6 {[%clk 0:02:59.4]} 4. g3
{[%clk 0:03:01.8]} 4... Bb7 {[%clk 0:03:00.1]} 5. Bg2 {[%clk 0:03:02.3]} 5...
Bb4+ {[%clk 0:03:00.7]} 6. Bd2 {[%clk 0:03:02.1]} 6... c5 {[%clk 0:03:01.2]} 7.
O-O {[%clk 0:03:02.4]} 7... O-O {[%clk 0:03:01.6]} 8. b3 {[%clk 0:02:53.2]} 8...
Bxd2 {[%clk 0:02:55.2]} 9. Nbxd2 {[%clk 0:02:51]} 9... cxd4 {[%clk 0:02:56.1]}
10. Qc2 {[%clk 0:02:43.5]} 10... Nc6 {[%clk 0:02:35.7]} 11. Rad1 {[%clk
0:02:42.2]} 11... Rc8 {[%clk 0:02:21.9]} 12. Ne4 {[%clk 0:02:31.1]} 12... d5
{[%clk 0:01:35.7]} 13. Nxf6+ {[%clk 0:02:22.2]} 13... Qxf6 {[%clk 0:01:35.3]}
14. cxd5 {[%clk 0:02:22.9]} 14... Ne5 {[%clk 0:01:30.5]} 15. Qb2 {[%clk
0:02:16.7]} 15... Nxf3+ {[%clk 0:01:28.6]} 16. Bxf3 {[%clk 0:02:16.1]} 16... e5
{[%clk 0:01:29]} 17. Bg2 {[%clk 0:02:10.6]} 17... Qg6 {[%clk 0:01:21.1]} 18. e4
{[%clk 0:01:57.6]} 18... Rc3 {[%clk 0:01:18.4]} 19. f4 {[%clk 0:01:53.2]} 19...
f6 {[%clk 0:00:51.2]} 20. fxe5 {[%clk 0:01:47.4]} 20... fxe5 {[%clk 0:00:44]}
21. Rxf8+ {[%clk 0:01:48.3]} 21... Kxf8 {[%clk 0:00:44.9]} 22. Rf1+ {[%clk
0:01:49.2]} 22... Kg8 {[%clk 0:00:45]} 23. Qa3 {[%clk 0:01:49.9]} 23... Rc8
{[%clk 0:00:37.3]} 24. Qxa7 {[%clk 0:01:46.9]} 24... Ba8 {[%clk 0:00:25.7]} 25.
Bh3 {[%clk 0:01:46.9]} 25... Rd8 {[%clk 0:00:15.8]} 26. Be6+ {[%clk 0:01:45.2]}
26... Kh8 {[%clk 0:00:15.9]} 27. Qe7 {[%clk 0:01:43.5]} 27... Qe8 {[%clk
0:00:11.6]} 28. Qc7 {[%clk 0:01:32.7]} 28... d3 {[%clk 0:00:04.4]} 29. Rd1
{[%clk 0:01:28.3]} 29... h6 {[%clk 0:00:01.9]} 30. Rxd3 {[%clk 0:01:27]} 30...
Qf8 {[%clk 0:00:02.5]} 31. Rf3 {[%clk 0:01:11.1]} 31... Qxf3 {[%clk 0:00:01.3]}
32. Qxd8+ {[%clk 0:01:11.6]} 32... Kh7 {[%clk 0:00:02.2]} 33. Bf5+ {[%clk
0:01:12]} 33... g6 {[%clk 0:00:01.8]} 34. Qe7+ {[%clk 0:01:12.6]} 34... Kh8
{[%clk 0:00:02.1]} 35. Qf8+ {[%clk 0:01:12.9]} 35... Kh7 {[%clk 0:00:02.1]} 36.
Bxg6+ {[%clk 0:01:13.8]} 1-0

[Event "*** Titled Tuesday Blitz"]
[Site "Chess.com"]
[Date "2020.11.24"]
[Round "7"]
[White "maximnovik"]
[Black "seorobert1971"]
[Result "1-0"]
[WhiteElo "2546"]
[BlackElo "2695"]
[TimeControl "180+1"]
[EndTime "11:34:06 PST"]
[Termination "maximnovik won by resignation"]

1. d4 {[%clk 0:03:00.9]} 1... Nf6 {[%clk 0:02:59.8]} 2. Bg5 {[%clk 0:02:59]}
2... Ne4 {[%clk 0:02:59.6]} 3. Bh4 {[%clk 0:02:59]} 3... c5 {[%clk 0:02:59.4]}
4. f3 {[%clk 0:02:59.3]} 4... Nf6 {[%clk 0:02:58.9]} 5. dxc5 {[%clk 0:02:58.2]}
5... Qa5+ {[%clk 0:02:57.8]} 6. c3 {[%clk 0:02:58.7]} 6... Qxc5 {[%clk
0:02:57.5]} 7. e4 {[%clk 0:02:59.2]} 7... Nc6 {[%clk 0:02:55.7]} 8. Na3 {[%clk
0:02:59.4]} 8... d6 {[%clk 0:02:43.6]} 9. Nb5 {[%clk 0:02:58]} 9... Qb6 {[%clk
0:02:39.2]} 10. Bf2 {[%clk 0:02:50.8]} 10... Qd8 {[%clk 0:02:38.8]} 11. Bc4
{[%clk 0:02:45.2]} 11... a6 {[%clk 0:02:36.8]} 12. Nd4 {[%clk 0:02:44.7]} 12...
Bd7 {[%clk 0:02:36.1]} 13. Nge2 {[%clk 0:02:44]} 13... e6 {[%clk 0:02:35.3]} 14.
O-O {[%clk 0:02:43.3]} 14... Be7 {[%clk 0:02:34.6]} 15. a4 {[%clk 0:02:40]}
15... O-O {[%clk 0:02:33.8]} 16. Ng3 {[%clk 0:02:28.7]} 16... Rc8 {[%clk
0:02:28.9]} 17. Ba2 {[%clk 0:02:25.3]} 17... Ne5 {[%clk 0:02:28.2]} 18. Qe2
{[%clk 0:02:21.4]} 18... Qc7 {[%clk 0:02:27.7]} 19. Kh1 {[%clk 0:02:16.7]} 19...
Rfe8 {[%clk 0:02:25.1]} 20. f4 {[%clk 0:02:15.9]} 20... Nc6 {[%clk 0:02:20.5]}
21. Rae1 {[%clk 0:02:08.2]} 21... Nxd4 {[%clk 0:02:19]} 22. Bxd4 {[%clk
0:02:06.3]} 22... Bxa4 {[%clk 0:02:04.8]} 23. e5 {[%clk 0:02:01.1]} 23... Nd5
{[%clk 0:01:55.5]} 24. f5 {[%clk 0:01:56.8]} 24... dxe5 {[%clk 0:01:22.1]} 25.
Bxe5 {[%clk 0:01:53.9]} 25... Bd6 {[%clk 0:01:21.9]} 26. fxe6 {[%clk 0:01:04.4]}
26... fxe6 {[%clk 0:01:19.5]} 27. Bxd6 {[%clk 0:01:04.2]} 27... Qxd6 {[%clk
0:01:19.3]} 28. Qg4 {[%clk 0:01:04.6]} 28... Bc6 {[%clk 0:01:10.8]} 29. Nh5
{[%clk 0:00:54.3]} 29... Rc7 {[%clk 0:00:57]} 30. c4 {[%clk 0:00:52]} 30... Kh8
{[%clk 0:00:50.5]} 31. cxd5 {[%clk 0:00:51.1]} 31... Bxd5 {[%clk 0:00:50.5]} 32.
Bxd5 {[%clk 0:00:48]} 32... Qxd5 {[%clk 0:00:50.6]} 33. Rxe6 {[%clk 0:00:32.2]}
33... Rg8 {[%clk 0:00:50]} 34. Nf4 {[%clk 0:00:28]} 34... Qc4 {[%clk 0:00:41.1]}
35. Ng6+ {[%clk 0:00:24.1]} 1-0

[Event "*** Titled Tuesday Blitz"]
[Site "Chess.com"]
[Date "2020.11.24"]
[Round "7"]
[White "vladgoncharov"]
[Black "verdest"]
[Result "0-1"]
[WhiteElo "2480"]
[BlackElo "2624"]
[TimeControl "180+1"]
[EndTime "11:34:12 PST"]
[Termination "verdest won by resignation"]

1. d4 {[%clk 0:03:00.9]} 1... Nf6 {[%clk 0:02:59.3]} 2. c4 {[%clk 0:02:59.8]}
2... c5 {[%clk 0:02:52.4]} 3. d5 {[%clk 0:02:59.2]} 3... b5 {[%clk 0:02:52.2]}
4. cxb5 {[%clk 0:03:00.1]} 4... a6 {[%clk 0:02:51.9]} 5. b6 {[%clk 0:03:00.3]}
5... d6 {[%clk 0:02:51.2]} 6. Nc3 {[%clk 0:03:00]} 6... Nbd7 {[%clk 0:02:50.6]}
7. e4 {[%clk 0:02:59.7]} 7... g6 {[%clk 0:02:49.9]} 8. a4 {[%clk 0:02:59]} 8...
Qxb6 {[%clk 0:02:49]} 9. Nf3 {[%clk 0:02:54]} 9... Bg7 {[%clk 0:02:48.4]} 10. a5
{[%clk 0:02:53.5]} 10... Qb4 {[%clk 0:02:47.8]} 11. Ra4 {[%clk 0:02:52.2]} 11...
Qb7 {[%clk 0:02:47.2]} 12. Bc4 {[%clk 0:02:45.7]} 12... O-O {[%clk 0:02:45.3]}
13. O-O {[%clk 0:02:45.2]} 13... Ne8 {[%clk 0:02:44]} 14. Qd3 {[%clk 0:02:34.7]}
14... Nc7 {[%clk 0:02:40.2]} 15. b3 {[%clk 0:02:33]} 15... Rb8 {[%clk
0:02:36.5]} 16. Bg5 {[%clk 0:02:26.1]} 16... Re8 {[%clk 0:02:34.5]} 17. h4
{[%clk 0:02:08.1]} 17... Nb5 {[%clk 0:02:31.4]} 18. Ne2 {[%clk 0:02:07.6]} 18...
h6 {[%clk 0:02:25.7]} 19. Bf4 {[%clk 0:02:03]} 19... Nf6 {[%clk 0:02:18.7]} 20.
Qd2 {[%clk 0:01:52.3]} 20... Nxe4 {[%clk 0:02:17.1]} 21. Qe3 {[%clk 0:01:52]}
21... Nec3 {[%clk 0:02:11.7]} 22. Bxh6 {[%clk 0:01:27.6]} 22... Nxd5 {[%clk
0:01:35.9]} 23. Bxd5 {[%clk 0:01:24.9]} 23... Qxd5 {[%clk 0:01:36.8]} 24. Bxg7
{[%clk 0:01:24.9]} 24... Kxg7 {[%clk 0:01:37.7]} 25. Nf4 {[%clk 0:01:23.1]}
25... Qf5 {[%clk 0:01:31.8]} 26. Ng5 {[%clk 0:01:17.2]} 26... Bb7 {[%clk
0:01:27]} 27. h5 {[%clk 0:01:00.3]} 27... e5 {[%clk 0:01:10.3]} 28. Nfh3 {[%clk
0:00:59.2]} 28... Nd4 {[%clk 0:01:05.3]} 29. hxg6 {[%clk 0:00:54.5]} 29... Qxg6
{[%clk 0:01:01.5]} 30. Rxd4 {[%clk 0:00:29.8]} 30... cxd4 {[%clk 0:01:00.7]} 31.
Qg3 {[%clk 0:00:30.3]} 31... f6 {[%clk 0:00:55.5]} 32. Rc1 {[%clk 0:00:24.3]}
32... Rbc8 {[%clk 0:00:47.9]} 33. Rxc8 {[%clk 0:00:19.3]} 33... Bxc8 {[%clk
0:00:48.8]} 0-1

[Event "*** Titled Tuesday Blitz"]
[Site "Chess.com"]
[Date "2020.11.24"]
[Round "7"]
[White "WiktoriaPOL"]
[Black "Matols"]
[Result "1-0"]
[WhiteElo "2081"]
[BlackElo "2223"]
[TimeControl "180+1"]
[EndTime "11:34:19 PST"]
[Termination "WiktoriaPOL won by checkmate"]

1. c4 {[%clk 0:03:00.9]} 1... e5 {[%clk 0:02:58.4]} 2. Nc3 {[%clk 0:03:00.7]}
2... Nf6 {[%clk 0:02:58.6]} 3. Nf3 {[%clk 0:02:59.9]} 3... Nc6 {[%clk
0:02:57.4]} 4. e4 {[%clk 0:02:59.4]} 4... Bb4 {[%clk 0:02:46.8]} 5. d3 {[%clk
0:02:58.9]} 5... O-O {[%clk 0:02:43.4]} 6. a3 {[%clk 0:02:58.1]} 6... Bxc3+
{[%clk 0:02:42.7]} 7. bxc3 {[%clk 0:02:57.5]} 7... d6 {[%clk 0:02:41.8]} 8. g3
{[%clk 0:02:56.4]} 8... Bg4 {[%clk 0:02:37]} 9. Bg2 {[%clk 0:02:55.9]} 9... Qd7
{[%clk 0:02:33.1]} 10. h3 {[%clk 0:02:52.7]} 10... Be6 {[%clk 0:02:32]} 11. Ng5
{[%clk 0:02:52.6]} 11... h6 {[%clk 0:02:13.8]} 12. Nxe6 {[%clk 0:02:51.5]} 12...
fxe6 {[%clk 0:02:13.9]} 13. O-O {[%clk 0:02:33.4]} 13... Rf7 {[%clk 0:02:11.3]}
14. f4 {[%clk 0:02:31.6]} 14... Raf8 {[%clk 0:02:02.8]} 15. Rf2 {[%clk
0:02:23.5]} 15... Nh7 {[%clk 0:01:46.4]} 16. Qe2 {[%clk 0:02:15.9]} 16... Qe7
{[%clk 0:01:26.9]} 17. Be3 {[%clk 0:02:12.7]} 17... exf4 {[%clk 0:01:18.1]} 18.
gxf4 {[%clk 0:02:10.6]} 18... Qh4 {[%clk 0:01:16]} 19. Raf1 {[%clk 0:02:08.9]}
19... e5 {[%clk 0:01:07.5]} 20. f5 {[%clk 0:02:03]} 20... Ne7 {[%clk 0:00:54.3]}
21. Kh2 {[%clk 0:01:54.8]} 21... Kh8 {[%clk 0:00:49.7]} 22. Rg1 {[%clk
0:01:51.7]} 22... Qf6 {[%clk 0:00:47.1]} 23. d4 {[%clk 0:01:48.7]} 23... b6
{[%clk 0:00:42.5]} 24. Bf3 {[%clk 0:01:40.4]} 24... Rd8 {[%clk 0:00:35.9]} 25.
Bh5 {[%clk 0:01:38]} 25... Rff8 {[%clk 0:00:35.9]} 26. Rfg2 {[%clk 0:01:29.6]}
26... Rg8 {[%clk 0:00:23.8]} 27. d5 {[%clk 0:01:14.1]} 27... a5 {[%clk 0:00:20]}
28. Bg6 {[%clk 0:01:10.5]} 28... Nf8 {[%clk 0:00:19.6]} 29. Qh5 {[%clk
0:01:08.5]} 29... Nfxg6 {[%clk 0:00:18.7]} 30. Rxg6 {[%clk 0:00:55.9]} 30...
Nxg6 {[%clk 0:00:18.1]} 31. Rxg6 {[%clk 0:00:56.5]} 31... Qf8 {[%clk 0:00:16.4]}
32. Bxh6 {[%clk 0:00:33.4]} 32... gxh6 {[%clk 0:00:12.4]} 33. Rxh6+ {[%clk
0:00:33.5]} 33... Kg7 {[%clk 0:00:12.2]} 34. Qg6# {[%clk 0:00:33.7]} 1-0